bitfinex/quotes_SOLUSD_20220129
["timestamp","ask_amount","ask_price","bid_price","bid_amount"]
[1643493935128,0.25,95.535,95.463,6.0]
[1643493935347,0.25,95.535,95.454,0.1]
[1643493935533,2.95669142,95.534,95.454,0.1]
[1643493935932,0.25,95.533,95.454,0.1]
[1643493936630,2.95669142,95.532,95.454,0.1]
[1643493936830,2.95669142,95.532,95.39,104.2]
[1643493936831,62.51,95.527,95.411,24.394]
[1643493937032,166.71,95.527,95.412,0.1]
[1643493937229,3.20669142,95.526,95.412,0.1]
[1643493937631,2.95669142,95.525,95.413,35.13460726]
[1643493937832,0.25,95.524,95.414,0.1]
[1643493938032,0.25,95.524,95.423,6.0]
[1643493938232,15.04,95.53,95.423,6.0]
[1643493938457,15.04,95.53,95.424,129.4155]
[1643493938632,15.04,95.53,95.435,35.28335711]
[1643493938833,15.04,95.53,95.436,0.35]
[1643493939039,15.04,95.53,95.445,6.0]
[1643493939433,20.9865562,95.537,95.436,0.1]
[1643493939834,2.95669142,95.536,95.436,0.1]
[1643493940035,24.5083,95.535,95.436,0.1]
[1643493940235,24.7583,95.535,95.436,0.1]
[1643493941837,24.7583,95.535,95.436,24.1211]
[1643493942038,24.7583,95.535,95.437,0.1]
[1643493942946,27.71499142,95.535,95.437,0.1]
[1643493943143,27.46499142,95.535,95.437,0.1]
[1643493944785,0.25,95.534,95.437,0.1]
[1643493945387,2.95669142,95.533,95.437,0.1]
[1643493945887,0.25,95.532,95.437,0.1]
[1643493946294,2.95669142,95.531,95.437,0.1]
[1643493946486,6.0,95.525,95.437,0.1]
[1643493946890,2.95669142,95.525,95.446,6.0]
[1643493947107,15.04,95.56,95.446,6.0]
[1643493947312,23.1268,95.576,95.447,104.2]
[1643493947313,2.95669142,95.574,95.447,104.2]
[1643493947487,23.1268,95.576,95.457,6.0]
[1643493947688,23.1268,95.576,95.458,104.2]
[1643493947889,23.1268,95.576,95.459,0.1]
[1643493948088,23.39200955,95.575,95.469,104.2]
[1643493948287,23.39200955,95.575,95.471,104.2]
[1643493948491,23.39200955,95.575,95.472,0.1]
[1643493948689,23.39200955,95.575,95.482,35.01585565]
[1643493948888,23.39200955,95.575,95.483,0.1]
[1643493949293,23.39200955,95.575,95.483,104.3]
[1643493949490,15.04,95.58,95.484,0.1]
[1643493949692,15.04,95.6,95.494,104.2]
[1643493949891,15.04,95.62,95.495,0.1]
[1643493950191,2.95669142,95.622,95.511,104.2]
[1643493950392,15.9171,95.659,95.512,0.25]
[1643493950591,15.04,95.67,95.522,104.2]
[1643493950795,15.04,95.67,95.531,104.2]
[1643493950796,30.3999,95.67,95.531,104.2]
[1643493951093,69.2168,95.691,95.541,6.0]
[1643493951292,22.6354,95.691,95.551,104.2]
[1643493951494,22.6354,95.691,95.561,6.0]
[1643493951697,19.55405643,95.69,95.57,15.04]
[1643493951896,19.55405643,95.69,95.572,104.2]
[1643493952096,19.55405643,95.69,95.582,6.0]
[1643493952294,19.55405643,95.69,95.583,104.45]
[1643493952496,19.55405643,95.69,95.583,104.2]
[1643493952709,19.55405643,95.69,95.593,6.0]
[1643493952899,2.95669142,95.689,95.594,43.10749767]
[1643493953096,2.95669142,95.689,95.604,6.0]
[1643493953297,0.25,95.688,95.594,43.10749767]
[1643493953698,2.95669142,95.687,95.594,43.10749767]
[1643493953899,0.25,95.686,95.594,43.10749767]
[1643493954103,2.95669142,95.687,95.594,43.10749767]
[1643493954298,34.59405643,95.69,95.594,43.10749767]
[1643493954501,2.95669142,95.689,95.594,43.10749767]
[1643493954704,2.45669142,95.689,95.594,43.10749767]
[1643493954936,6.0,95.679,95.56,15.04]
[1643493955133,6.0,95.679,95.571,6.0]
[1643493955332,3.20669142,95.678,95.571,6.0]
[1643493955531,0.25,95.678,95.571,6.0]
[1643493955731,3.20669142,95.678,95.571,6.0]
[1643493955934,2.95669142,95.677,95.572,39.7094629]
[1643493956332,0.25,95.676,95.572,39.7094629]
[1643493956732,4.19933519,95.674,95.572,39.7094629]
[1643493956938,6.0,95.667,95.572,39.7094629]
[1643493957435,3.20669142,95.666,95.572,39.7094629]
[1643493957835,2.95669142,95.665,95.572,39.7094629]
[1643493958236,0.25,95.664,95.582,6.0]
[1643493958636,0.25,95.664,95.583,6.0]
[1643493960237,0.25,95.664,95.572,39.7094629]
[1643493960637,4.19933519,95.674,95.572,39.7094629]
[1643493960638,0.25,95.673,95.572,39.7094629]
[1643493962539,0.25,95.673,95.583,104.2]
[1643493968547,0.25,95.673,95.595,35.01653444]
[1643493968748,0.25,95.673,95.596,104.2]
[1643493968954,0.25,95.673,95.595,35.01653444]
[1643493969349,4.19933519,95.674,95.595,35.01653444]
[1643493970751,0.25,95.673,95.595,35.01653444]
[1643493973357,15.04,95.7,95.595,35.01653444]
[1643493973358,6.0,95.69,95.595,35.01653444]
[1643493973782,0.25,95.689,95.596,104.2]
[1643493973987,24.66287568,95.69,95.596,106.37576655]
[1643493974587,24.66287568,95.69,95.596,104.2]
[1643493975387,0.25,95.689,95.597,0.25]
[1643493975584,0.25,95.689,95.597,2.42576655]
[1643493975784,6.0,95.68,95.598,2.17576655]
[1643493975985,0.25,95.712,95.598,2.17576655]
[1643493976185,0.25,95.679,95.598,2.17576655]
[1643493976387,19.58765961,95.708,95.608,6.0]
[1643493976588,19.58765961,95.708,95.609,104.2]
[1643493976788,19.58765961,95.708,95.61,36.18285321]
[1643493977086,24.301,95.727,95.611,104.2]
[1643493977285,24.301,95.727,95.611,106.61361521]
[1643493977486,24.301,95.727,95.621,110.2]
[1643493977885,24.301,95.727,95.63,6.0]
[1643493978089,19.4833846,95.73,95.632,6.0]
[1643493978286,19.4833846,95.73,95.633,104.2]
[1643493978485,19.4833846,95.73,95.641,6.0]
[1643493978686,19.4833846,95.73,95.644,104.2]
[1643493978887,3.11834591,95.729,95.644,104.2]
[1643493979086,2.86834591,95.728,95.644,104.2]
[1643493979488,2.86834591,95.729,95.644,104.2]
[1643493979891,2.86834591,95.744,95.644,104.2]
[1643493980090,0.30882316,95.727,95.643,6.0]
[1643493980292,2.95669142,95.728,95.643,6.0]
[1643493980493,5.82503733,95.726,95.641,6.0]
[1643493980692,2.95669142,95.726,95.641,6.0]
[1643493980890,6.07503733,95.725,95.641,6.0]
[1643493981090,3.20669142,95.725,95.641,6.0]
[1643493981498,3.0,95.741,95.641,6.0]
[1643493981696,18.13984242,95.773,95.642,2.41361521]
[1643493981893,4.28210191,95.777,95.651,40.66627793]
[1643493982095,48.8426,95.79,95.66,15.04]
[1643493982292,212.4300147,95.81,95.66,15.04]
[1643493982293,2.65259084,95.789,95.661,6.25]
[1643493982493,2.65259084,95.801,95.671,6.0]
[1643493982700,2.65259084,95.809,95.68,15.04]
[1643493982897,23.61005733,95.808,95.681,34.23139961]
[1643493983193,2.65259084,95.807,95.691,6.0]
[1643493983398,2.65259084,95.807,95.702,104.2]
[1643493983612,2.65259084,95.807,95.712,6.0]
[1643493983799,0.25,95.806,95.713,0.25]
[1643493984094,2.65259084,95.805,95.72,6.0]
[1643493984294,23.61005733,95.808,95.72,6.0]
[1643493984295,23.61005733,95.808,95.721,35.63925982]
[1643493984495,23.61005733,95.808,95.731,6.0]
[1643493984693,23.61005733,95.808,95.731,110.2]
[1643493984893,23.61005733,95.808,95.731,104.2]
[1643493985097,6.0,95.798,95.731,104.2]
[1643493985895,3.0,95.821,95.721,35.63925982]
[1643493986099,6.0,95.811,95.721,35.63925982]
[1643493986295,2.51990856,95.81,95.721,35.63925982]
[1643493986496,18.63774237,95.81,95.721,35.63925982]
[1643493986994,18.63774237,95.81,95.731,6.0]
[1643493987195,0.25,95.809,95.721,35.63925982]
[1643493988495,0.25,95.809,95.722,104.2]
[1643493988695,6.0,95.8,95.722,104.2]
[1643493988897,3.0,95.821,95.722,104.2]
[1643493989197,93.35905895,95.985,95.733,104.2]
[1643493989198,3.0,95.817,95.733,104.2]
[1643493989396,3.0,95.861,95.74,15.04]
[1643493989598,15.668,95.87,95.75,6.0]
[1643493989599,5.47272131,95.86,95.75,6.0]
[1643493989802,2.51602989,95.859,95.751,104.45]
[1643493990099,17.24827902,95.858,95.761,6.0]
[1643493990298,0.25,95.857,95.761,6.0]
[1643493990500,6.0,95.848,95.762,6.0]
[1643493990724,6.0,95.848,95.752,33.22280209]
[1643493990900,0.25,95.847,95.752,33.22280209]
[1643493991099,3.20669142,95.847,95.753,104.2]
[1643493991302,2.95669142,95.846,95.753,104.2]
[1643493991701,0.25,95.845,95.753,104.2]
[1643493992103,2.95669142,95.844,95.753,104.2]
[1643493992337,15.67,95.84,95.753,104.2]
[1643493992509,3.0,95.848,95.753,104.2]
[1643493992510,3.0,95.848,95.763,6.0]
[1643493992708,2.95669142,95.878,95.763,6.0]
[1643493992907,3.0,95.882,95.763,6.0]
[1643493993105,3.0,95.882,95.77,6.0]
[1643493993508,15.663,95.87,95.771,38.82585998]
[1643493993707,15.663,95.87,95.772,104.2]
[1643493994111,2.95669142,95.869,95.772,104.2]
[1643493994308,3.0,95.882,95.773,0.25]
[1643493994508,3.0,95.872,95.773,0.25]
[1643493994708,6.0,95.886,95.782,6.0]
[1643493995309,27.13888093,95.885,95.79,6.0]
[1643493995509,27.13888093,95.885,95.791,35.54121667]
[1643493995709,2.95669142,95.884,95.791,139.74121667]
[1643493996108,15.66,95.88,95.791,139.74121667]
[1643493996514,2.95669142,95.879,95.791,139.74121667]
[1643493996709,2.95669142,95.879,95.791,35.54121667]
[1643493996911,0.25,95.878,95.77,15.04]
[1643493997109,0.25,95.878,95.76,15.04]
[1643493997310,30.703,95.87,95.731,104.2]
[1643493997514,52.232,95.85,95.731,104.2]
[1643493997713,48.9511,95.849,95.731,104.2]
[1643493997910,49.2011,95.849,95.732,46.12136277]
[1643493998112,52.15779142,95.849,95.732,46.12136277]
[1643493998311,3.0,95.844,95.733,104.2]
[1643493998515,3.0,95.844,95.743,110.2]
[1643493998713,3.0,95.842,95.743,104.2]
[1643493998912,3.0,95.842,95.72,15.04]
[1643493999163,3.20669142,95.841,95.743,0.25]
[1643493999312,3.20669142,95.841,95.721,0.25]
[1643493999512,6.0,95.831,95.721,0.25]
[1643493999713,15.671,95.82,95.721,0.25]
[1643493999912,15.671,95.82,95.721,36.56553016]
[1643494000112,0.25,95.819,95.721,0.25]
[1643494000312,3.20669142,95.819,95.721,0.25]
[1643494000518,2.95669142,95.818,95.72,15.04]
[1643494000713,2.95669142,95.818,95.675,24.3994]
[1643494000714,15.673,95.81,95.69,15.04]
[1643494000923,0.30498344,95.804,95.68,15.04]
[1643494001138,62.51,95.799,95.66,15.04]
[1643494001317,3.0,95.791,95.66,15.04]
[1643494001514,3.0,95.789,95.66,15.04]
[1643494001716,3.0,95.787,95.66,15.04]
[1643494002114,15.681,95.77,95.661,104.45]
[1643494002319,0.25,95.769,95.661,104.45]
[1643494002714,0.25,95.769,95.661,104.2]
[1643494003016,2.95669142,95.768,95.661,104.2]
[1643494003216,21.681,95.76,95.661,104.2]
[1643494003618,3.20669142,95.759,95.661,104.2]
[1643494003815,3.20669142,95.759,95.671,6.0]
[1643494003816,0.25,95.759,95.671,6.0]
[1643494004120,0.25,95.759,95.673,33.51308751]
[1643494004322,15.682,95.75,95.673,33.51308751]
[1643494004767,0.25,95.749,95.673,33.51308751]
[1643494005918,15.685,95.73,95.673,33.51308751]
[1643494006121,15.685,95.73,95.65,15.04]
[1643494006320,15.685,95.73,95.64,15.04]
[1643494006321,0.25,95.729,95.64,15.04]
[1643494006521,0.25,95.729,95.65,6.0]
[1643494006721,0.25,95.729,95.62,15.04]
[1643494006722,0.25,95.729,95.632,0.25]
[1643494006922,0.25,95.729,95.62,15.04]
[1643494007125,0.25,95.729,95.638,143.55712954]
[1643494007953,6.0,95.72,95.638,143.55712954]
[1643494008345,0.25,95.719,95.638,143.55712954]
[1643494009146,3.0,95.744,95.638,143.55712954]
[1643494009344,0.25,95.728,95.648,6.0]
[1643494009544,24.3068,95.756,95.65,21.04]
[1643494009747,0.25,95.743,95.651,104.2]
[1643494009947,0.25,95.743,95.662,44.6693973]
[1643494010343,0.25,95.743,95.663,0.25]
[1643494010744,0.25,95.743,95.663,104.45]
[1643494010944,0.25,95.756,95.663,104.45]
[1643494011146,6.0,95.747,95.663,104.45]
[1643494011449,0.25,95.746,95.663,104.45]
[1643494011749,0.25,95.746,95.662,44.6693973]
[1643494011945,2.95669142,95.745,95.662,44.6693973]
[1643494012149,15.683,95.74,95.641,104.2]
[1643494012346,0.25,95.739,95.641,104.2]
[1643494012546,3.20669142,95.739,95.641,104.2]
[1643494012948,2.95669142,95.738,95.641,104.2]
[1643494013180,2.95669142,95.738,95.642,42.37324357]
[1643494013347,0.25,95.737,95.642,42.37324357]
[1643494013750,2.95669142,95.736,95.642,42.37324357]
[1643494013952,15.686,95.72,95.642,42.37324357]
[1643494014350,0.25,95.719,95.642,42.37324357]
[1643494020766,0.25,95.719,95.643,104.2]
[1643494020967,0.25,95.719,95.643,104.45]
[1643494022269,15.683,95.74,95.643,104.45]
[1643494022670,2.95669142,95.755,95.653,6.0]
[1643494022873,1.42313097,95.763,95.654,104.45]
[1643494023073,27.8685,95.768,95.665,104.2]
[1643494023271,27.8685,95.768,95.666,42.62117951]
[1643494023473,27.8685,95.768,95.667,104.2]
[1643494023877,27.8685,95.768,95.668,0.25]
[1643494024076,15.68,95.76,95.668,0.25]
[1643494024274,0.25,95.756,95.668,0.25]
[1643494024475,0.25,95.756,95.667,104.2]
[1643494024676,15.68,95.76,95.667,104.2]
[1643494024876,15.68,95.76,95.668,0.25]
[1643494025874,24.12603097,95.779,95.668,0.25]
[1643494026106,22.7029,95.779,95.678,104.2]
[1643494026307,22.7029,95.779,95.68,15.04]
[1643494026608,1.42313097,95.771,95.69,6.0]
[1643494026807,4.42313097,95.772,95.691,104.45]
[1643494027006,4.42313097,95.772,95.701,6.0]
[1643494027206,0.25,95.771,95.701,6.0]
[1643494027414,0.25,95.771,95.702,0.25]
[1643494027806,3.0,95.789,95.702,0.25]
[1643494027807,0.25,95.774,95.702,0.25]
[1643494028209,1.42313097,95.777,95.702,104.45]
[1643494028408,1.42313097,95.78,95.702,104.2]
[1643494028615,1.42313097,95.778,95.702,104.2]
[1643494029007,1.42313097,95.781,95.702,104.2]
[1643494029607,1.42313097,95.772,95.702,104.2]
[1643494029807,15.673,95.8,95.702,104.2]
[1643494029808,0.25,95.771,95.702,104.2]
[1643494030809,1.67313097,95.771,95.702,104.2]
[1643494031012,1.67313097,95.772,95.702,104.2]
[1643494031217,0.25,95.77,95.702,104.2]
[1643494031411,0.25,95.772,95.702,104.2]
[1643494031814,0.25,95.772,95.703,0.25]
[1643494032211,0.25,95.773,95.703,0.25]
[1643494032412,0.25,95.776,95.703,0.25]
[1643494033018,0.25,95.776,95.712,6.0]
[1643494033213,0.25,95.776,95.713,139.45101986]
[1643494033414,0.25,95.776,95.713,139.70101986]
[1643494033615,0.25,95.778,95.713,139.45101986]
[1643494033814,0.25,95.779,95.714,0.25]
[1643494034113,1.67313097,95.779,95.714,0.25]
[1643494034614,1.42313097,95.779,95.714,0.25]
[1643494034814,1.42313097,95.779,95.691,22.6452]
[1643494034815,1.67313097,95.778,95.691,22.6452]
[1643494035014,1.67313097,95.778,95.68,15.04]
[1643494035015,6.0,95.768,95.68,15.04]
[1643494035216,1.42313097,95.76,95.65,15.04]
[1643494035415,1.42313097,95.76,95.652,104.45]
[1643494035616,1.42313097,95.755,95.652,104.45]
[1643494035917,15.683,95.74,95.654,104.2]
[1643494036315,0.25,95.739,95.654,104.2]
[1643494037763,0.25,95.739,95.655,0.25]
[1643494042024,0.25,95.739,95.654,104.2]
[1643494042223,1.42313097,95.734,95.654,104.2]
[1643494042424,6.0,95.73,95.654,104.2]
[1643494042624,1.42313097,95.732,95.654,104.2]
[1643494042828,0.25,95.729,95.654,104.2]
[1643494043225,0.25,95.729,95.655,42.11761936]
[1643494043527,1.42313097,95.736,95.665,6.0]
[1643494043724,1.42313097,95.736,95.67,15.04]
[1643494043929,1.42313097,95.766,95.671,42.05352082]
[1643494044125,1.42313097,95.777,95.681,6.0]
[1643494044325,1.42313097,95.777,95.69,15.04]
[1643494044527,1.42313097,95.778,95.7,6.0]
[1643494044952,23.5697,95.798,95.702,104.2]
[1643494044953,1.67313097,95.777,95.702,104.2]
[1643494045153,1.42313097,95.78,95.702,104.2]
[1643494045384,1.42313097,95.789,95.712,6.0]
[1643494045558,1.42313097,95.802,95.72,15.04]
[1643494045755,1.42313097,95.805,95.721,104.45]
[1643494045953,1.42313097,95.806,95.73,6.0]
[1643494046153,1.42313097,95.806,95.731,46.83576908]
[1643494046353,1.42313097,95.806,95.731,47.08576908]
[1643494046555,1.42313097,95.806,95.74,6.0]
[1643494046754,15.04,95.87,95.74,6.0]
[1643494046755,2.84912198,95.848,95.741,6.25]
[1643494046956,2.84912198,95.854,95.741,6.25]
[1643494047158,2.84912198,95.861,95.75,6.0]
[1643494047356,2.84912198,95.866,95.761,104.2]
[1643494047557,2.21788637,95.867,95.771,6.0]
[1643494047757,2.21788637,95.867,95.78,15.04]
[1643494047964,19.78320337,95.866,95.781,36.27952808]
[1643494048157,19.78320337,95.866,95.79,6.0]
[1643494048357,19.78320337,95.866,95.791,6.0]
[1643494048565,2.21788637,95.865,95.793,104.2]
[1643494048863,19.78320337,95.866,95.793,104.2]
[1643494049060,19.78320337,95.866,95.804,44.29470047]
[1643494049459,19.78320337,95.866,95.805,104.2]
[1643494049662,0.25,95.865,95.804,44.29470047]
[1643494049858,3.20669142,95.865,95.78,15.04]
[1643494050061,2.95669142,95.864,95.76,15.04]
[1643494050263,0.25,95.863,95.761,0.25]
[1643494050460,0.25,95.863,95.77,15.04]
[1643494050661,0.25,95.863,95.771,104.2]
[1643494050868,0.25,95.863,95.78,6.0]
[1643494051059,0.25,95.863,95.771,146.67535517]
[1643494051060,0.25,95.863,95.782,104.2]
[1643494051260,0.25,95.863,95.783,0.25]
[1643494051463,0.25,95.865,95.794,104.2]
[1643494051860,3.0,95.859,95.794,104.2]
[1643494052560,2.84912198,95.891,95.793,33.07054373]
[1643494052766,3.0,95.884,95.793,33.07054373]
[1643494053059,6.0,95.881,95.793,33.07054373]
[1643494053261,15.664,95.86,95.793,33.07054373]
[1643494053462,6.0,95.881,95.793,33.07054373]
[1643494053663,6.0,95.881,95.794,104.2]
[1643494053664,0.25,95.859,95.794,104.2]
[1643494053866,3.0,95.869,95.794,104.2]
[1643494054264,0.25,95.868,95.794,104.2]
[1643494055262,0.25,95.868,95.795,0.25]
[1643494055664,22.33495653,95.868,95.794,104.2]
[1643494057065,22.33495653,95.868,95.793,33.07054373]
[1643494057267,2.95669142,95.867,95.793,33.07054373]
[1643494057666,0.25,95.866,95.793,33.07054373]
[1643494058068,0.25,95.866,95.794,104.2]
[1643494058768,0.25,95.867,95.794,104.2]
[1643494060168,2.95669142,95.866,95.794,104.2]
[1643494060378,0.25,95.865,95.794,104.2]
[1643494061570,3.0,95.863,95.804,6.0]
[1643494061771,0.25,95.862,95.804,6.0]
[1643494064377,0.25,95.862,95.794,104.2]
[1643494064378,6.0,95.853,95.794,104.2]
[1643494064619,3.59156606,95.852,95.771,104.2]
[1643494064776,15.665,95.85,95.77,10.27]
[1643494065178,3.20669142,95.849,95.77,10.27]
[1643494065574,2.95669142,95.848,95.771,41.00946593]
[1643494065774,0.25,95.847,95.771,41.00946593]
[1643494065976,15.668,95.83,95.771,41.00946593]
[1643494066175,19.30005142,95.829,95.771,41.00946593]
[1643494066475,19.55005142,95.829,95.771,41.00946593]
[1643494067076,19.55005142,95.829,95.77,10.27]
[1643494067077,15.671,95.82,95.77,10.27]
[1643494067276,0.25,95.819,95.77,10.27]
[1643494068078,0.25,95.819,95.771,46.04200398]
[1643494068400,6.0,95.81,95.771,46.04200398]
[1643494068580,6.37647117,95.811,95.771,46.04200398]
[1643494068782,0.25,95.809,95.77,10.27]
[1643494069784,0.25,95.819,95.77,10.27]
[1643494070190,20.33959869,95.819,95.77,10.27]
[1643494070586,6.0,95.809,95.77,10.27]
[1643494070786,0.25,95.808,95.77,10.27]
[1643494071214,0.25,95.808,95.721,104.2]
[1643494071415,2.95669142,95.807,95.722,38.91370382]
[1643494071616,2.95669142,95.807,95.722,39.16370382]
[1643494071812,0.25,95.806,95.723,104.2]
[1643494072214,2.95669142,95.805,95.723,104.2]
[1643494072615,0.25,95.804,95.723,104.2]
[1643494073032,15.675,95.79,95.723,104.2]
[1643494073226,0.92159453,95.789,95.69,15.04]
[1643494073429,1.17159453,95.789,95.69,15.04]
[1643494073825,2.95669142,95.788,95.69,15.04]
[1643494074016,2.95669142,95.788,95.67,104.2]
[1643494074244,0.25,95.787,95.671,37.55986109]
[1643494074423,15.678,95.78,95.671,37.55986109]
[1643494074627,6.0,95.778,95.672,104.2]
[1643494074817,48.2435,95.777,95.672,104.2]
[1643494075319,51.20019142,95.777,95.672,104.2]
[1643494075517,2.95669142,95.776,95.672,104.2]
[1643494075920,15.68,95.76,95.672,104.2]
[1643494076118,3.0,95.772,95.672,104.2]
[1643494076346,0.25,95.775,95.672,104.2]
[1643494076347,11.43990054,95.774,95.682,6.0]
[1643494076520,11.43990054,95.774,95.69,15.04]
[1643494076720,0.25,95.773,95.691,44.23366968]
[1643494076921,0.25,95.773,95.701,104.2]
[1643494077118,0.25,95.773,95.701,110.2]
[1643494077319,0.25,95.773,95.702,0.25]
[1643494077520,0.25,95.773,95.702,6.25]
[1643494077720,11.22515702,95.81,95.712,104.2]
[1643494077931,22.5187,95.809,95.713,39.77602666]
[1643494078122,3.0,95.793,95.724,104.2]
[1643494078321,4.68136557,95.792,95.724,104.2]
[1643494078530,4.68136557,95.792,95.713,39.77602666]
[1643494078722,2.95669142,95.791,95.713,39.77602666]
[1643494079124,0.25,95.79,95.713,39.77602666]
[1643494079322,6.0,95.781,95.713,39.77602666]
[1643494079723,0.25,95.78,95.713,39.77602666]
[1643494082434,15.927,95.78,95.713,39.77602666]
[1643494083030,6.0,95.77,95.713,39.77602666]
[1643494083234,10.97515702,95.769,95.713,39.77602666]
[1643494083427,6.0,95.77,95.714,104.2]
[1643494083627,45.7775,95.79,95.724,110.2]
[1643494083826,3.0,95.791,95.724,110.2]
[1643494084431,14.89411401,95.79,95.724,110.2]
[1643494084829,0.25,95.789,95.724,110.2]
[1643494085432,3.0,95.808,95.724,110.2]
[1643494085734,3.0,95.808,95.725,0.25]
[1643494086030,14.75555465,95.807,95.725,0.25]
[1643494086631,3.0,95.808,95.725,0.25]
[1643494086829,0.25,95.807,95.725,0.25]
[1643494087058,0.25,95.807,95.73,6.0]
[1643494087232,0.25,95.826,95.735,104.2]
[1643494087630,11.85065699,95.826,95.745,6.0]
[1643494087832,3.0,95.821,95.746,104.45]
[1643494088032,3.0,95.821,95.746,110.45]
[1643494088235,0.25,95.82,95.746,110.45]
[1643494088637,3.0,95.821,95.746,110.45]
[1643494089333,2.95669142,95.852,95.75,15.04]
[1643494089533,2.95669142,95.852,95.76,6.0]
[1643494089735,3.34562551,95.868,95.771,37.2871324]
[1643494089939,3.34562551,95.868,95.772,104.2]
[1643494090138,2.84912198,95.876,95.782,104.2]
[1643494090334,2.84912198,95.876,95.783,0.25]
[1643494090532,0.25,95.875,95.79,6.0]
[1643494090735,2.28940985,95.875,95.79,6.0]
[1643494090936,2.03940985,95.875,95.792,6.0]
[1643494091134,0.25,95.876,95.792,6.0]
[1643494091135,15.30324727,95.874,95.793,38.60643848]
[1643494091336,13.26383742,95.874,95.793,38.60643848]
[1643494091536,13.26383742,95.874,95.804,104.2]
[1643494091735,13.01383742,95.874,95.804,104.2]
[1643494091936,3.0,95.866,95.804,104.2]
[1643494093241,0.25,95.865,95.804,104.2]
[1643494095041,0.25,95.865,95.805,0.25]
[1643494095339,0.25,95.873,95.805,0.25]
[1643494095540,0.25,95.873,95.804,104.2]
[1643494095744,2.95669142,95.864,95.793,38.60643848]
[1643494096149,0.25,95.863,95.793,38.60643848]
[1643494096346,3.0,95.861,95.793,38.60643848]
[1643494096545,0.25,95.863,95.793,38.60643848]
[1643494096546,3.0,95.844,95.793,38.60643848]
[1643494096946,0.25,95.843,95.793,38.60643848]
[1643494097362,3.20669142,95.843,95.793,38.60643848]
[1643494097563,2.95669142,95.842,95.77,104.2]
[1643494097803,0.25,95.841,95.77,104.2]
[1643494097964,3.0,95.836,95.74,15.04]
[1643494098163,3.0,95.836,95.741,0.25]
[1643494098370,3.0,95.836,95.75,6.0]
[1643494098565,3.0,95.836,95.751,38.90076825]
[1643494098867,17.0113363,95.826,95.751,38.90076825]
[1643494099066,17.0113363,95.826,95.752,104.2]
[1643494099864,0.25,95.825,95.752,104.2]
[1643494100468,15.67,95.82,95.752,104.2]
[1643494100869,14.95815073,95.819,95.752,104.2]
[1643494101067,0.25,95.819,95.752,104.2]
[1643494101666,0.25,95.819,95.762,6.0]
[1643494101867,0.25,95.825,95.763,104.2]
[1643494102272,0.25,95.826,95.751,38.90076825]
[1643494102467,6.0,95.817,95.751,38.90076825]
[1643494102668,6.0,95.817,95.752,0.25]
[1643494102868,0.25,95.816,95.752,0.25]
[1643494103971,0.25,95.816,95.752,104.45]
[1643494104771,0.25,95.826,95.752,104.45]
[1643494104971,6.0,95.817,95.752,104.45]